fUST/lending_fUST_20250212
["ID","MTS","AMOUNT","RATE_DAILY","PERIOD"]
[352817159,1739345251334,-500.0,0.00011999,2]
[352817160,1739345251356,-500.0,0.00011999,2]
[352817161,1739345251383,-500.0,0.00011999,2]
[352817162,1739345251407,-500.0,0.00011999,2]
[352817163,1739345251429,-500.0,0.00011999,2]
[352817164,1739345251453,-500.0,0.00011999,2]
[352817165,1739345251475,-500.0,0.00011999,2]
[352817166,1739345251497,-500.0,0.00011999,2]
[352817167,1739345251519,-500.0,0.00011999,2]
[352817168,1739345251541,-500.0,0.00011999,2]
[352817169,1739345251563,-500.0,0.00011999,2]
[352817170,1739345251584,-502.48267641,0.00011999,2]
[352817171,1739345251606,-500.0,0.00011999,2]
[352817172,1739345251628,-500.0,0.00011999,2]
[352817173,1739345251649,-510.37581129,0.00011999,2]
[352817174,1739345251671,-500.51122662,0.00011999,2]
[352817175,1739345251692,-500.0,0.00011999,2]
[352817176,1739345251713,-500.0,0.00011999,2]
[352817177,1739345251735,-500.0,0.00011999,2]
[352817178,1739345251756,-500.0,0.00011999,2]
[352817179,1739345251777,-500.0,0.00011999,2]
[352817180,1739345251798,-500.0,0.00011999,2]
[352817181,1739345251820,-500.0,0.00011999,2]
[352817182,1739345251842,-502.47997598,0.00011999,2]
[352817183,1739345251864,-500.0,0.00011999,2]
[352817184,1739345251886,-500.0,0.00011999,2]
[352817185,1739345251906,-500.0,0.00011999,2]
[352817186,1739345251929,-501.8015462,0.00011999,2]
[352817187,1739345251950,-500.0,0.00011999,2]
[352817188,1739345251973,-500.0,0.00011999,2]
[352817189,1739345251996,-500.0,0.00011999,2]
[352817190,1739345252020,-500.0,0.00011999,2]
[352817191,1739345252041,-501.89238646,0.00011999,2]
[352817192,1739345252062,-500.0,0.00011999,2]
[352817193,1739345252083,-500.0,0.00011999,2]
[352817194,1739345252104,-500.0,0.00011999,2]
[352817195,1739345252126,-627.30091157,0.00012135,2]
[352817196,1739345252147,-500.0,0.00012135,2]
[352817197,1739345252169,-500.0,0.00012135,2]
[352817198,1739345252189,-245.80546846,0.00012135,2]
[352817199,1739345252211,-500.0,0.00012135,2]
[352817200,1739345252231,-500.0,0.00012135,2]
[352817201,1739345252253,-500.0,0.00012135,2]
[352817202,1739345252276,-2839.33,0.00012135,2]
[352817203,1739345252297,-500.0,0.00012135,2]
[352817204,1739345252319,-310.91,0.00012135,2]
[352817205,1739345252342,-985.03,0.00012135,2]
[352817206,1739345252477,-951.47,0.00012135,2]
[352817207,1739345252499,-264.11424291,0.00012135,2]
[352817208,1739345252521,-500.0,0.00012135,2]
[352817209,1739345252543,-500.0,0.00012135,2]
[352817210,1739345252564,-504.5404039,0.00012135,2]
[352817211,1739345252584,-500.0,0.00012135,2]
[352817212,1739345252611,-500.0,0.00012135,2]
[352817213,1739345252633,-500.0,0.00012135,2]
[352817214,1739345252653,-500.0,0.00012135,2]
[352817215,1739345252675,-500.0,0.00012135,2]
[352817216,1739345252696,-500.0,0.00012135,2]
[352817217,1739345252718,-500.0,0.00012135,2]
[352817218,1739345252744,-500.0,0.00012135,2]
[352817219,1739345252767,-732.46,0.00012135,2]
[352817220,1739345252790,-723.95,0.00012135,2]
[352817221,1739345252813,-2689.73,0.00012135,2]
[352817222,1739345252834,-500.0,0.00012135,2]
[352817223,1739345252855,-500.0,0.00012135,2]
[352817224,1739345252878,-500.0,0.00012135,2]
[352817225,1739345252899,-500.0,0.00012135,2]
[352817226,1739345252919,-500.0,0.00012135,2]
[352817227,1739345252942,-553.88,0.00012135,2]
[352817228,1739345252963,-500.0,0.00012135,2]
[352817229,1739345252984,-500.0,0.00012135,2]
[352817230,1739345253006,-500.0,0.00012135,2]
[352817231,1739345253028,-500.0,0.00012135,2]
[352817232,1739345253057,-500.0,0.00012135,2]
[352817233,1739345253078,-500.0,0.00012135,2]
[352817234,1739345253104,-500.0,0.00012135,2]
[352817235,1739345253128,-134.95361683,0.00012135,2]
[352817243,1739345365095,-300.0,0.00011997,2]
[352817244,1739345365117,-2856.23,0.00011998,2]
[352817245,1739345365139,-956.0,0.00011998,2]
[352817246,1739345365160,-500.0,0.00011998,2]
[352817247,1739345365182,-500.0,0.00011998,2]
[352817248,1739345365204,-943.98,0.00011998,2]
[352817249,1739345365226,-500.0,0.00011998,2]
[352817250,1739345365248,-500.0,0.00011998,2]
[352817251,1739345365268,-500.0,0.00011998,2]
[352817252,1739345365289,-500.0,0.00011998,2]
[352817253,1739345365312,-693.79,0.00011998,2]
[352817254,1739345365334,-2703.74,0.00011998,2]
[352817255,1739345365356,-500.0,0.00011998,2]
[352817256,1739345365377,-500.0,0.00011998,2]
[352817257,1739345365400,-500.0,0.00011998,2]
[352817258,1739345365423,-708.05,0.00012134,2]
[352817259,1739345365445,-365.04638317,0.00012135,2]
[352817260,1739345365466,-507.09090585,0.00012135,2]
[352817261,1739345365490,-500.0,0.00012135,2]
[352817262,1739345365511,-674.82,0.00012135,2]
[352817263,1739345365533,-500.0,0.00012135,2]
[352817264,1739345365555,-500.0,0.00012135,2]
[352817265,1739345365575,-245.80808486,0.00012135,2]
[352817266,1739345365596,-500.0,0.00012135,2]
[352817267,1739345365618,-148.20613208,0.00012135,2]
[352817268,1739345369122,-357.66479205,0.00012135,2]
[352817269,1739345369145,-500.0,0.00012135,2]
[352817270,1739345369167,-502.39043693,0.00012135,2]
[352817271,1739345369189,-500.0,0.00012135,2]
[352817272,1739345369211,-500.0,0.00012135,2]
[352817273,1739345369234,-339.2364921,0.00012135,2]
[352817274,1739345369255,-500.0,0.00012135,2]
[352817275,1739345369277,-500.0,0.00012135,2]
[352817276,1739345369299,-900.73,0.00012135,2]
[352817277,1739345369321,-500.0,0.00012135,2]
[352817278,1739345369343,-500.0,0.00012135,2]
[352817279,1739345369366,-2856.23,0.00012135,2]
[352817280,1739345369389,-956.0,0.00012135,2]
[352817281,1739345369415,-378.3472983,0.00012135,2]
[352817282,1739345369438,-304.4,0.00012135,2]
[352817283,1739345369463,-500.0,0.00012135,2]
[352817284,1739345369485,-500.0,0.00012135,2]
[352817285,1739345369508,-500.46450138,0.00012135,2]
[352817286,1739345369530,-500.98793775,0.00012135,2]
[352817287,1739345369654,-943.98,0.00012135,2]
[352817288,1739345369678,-500.0,0.00012135,2]
[352817289,1739345369700,-500.0,0.00012135,2]
[352817291,1739345369724,-500.0,0.00012135,2]
[352817293,1739345369748,-8992.58,0.00012135,2]
[352817294,1739345369770,-500.0,0.00012135,2]
[352817296,1739345369792,-500.0,0.00012135,2]
[352817297,1739345369815,-500.0,0.00012135,2]
[352817298,1739345369837,-500.0,0.00012135,2]
[352817299,1739345369860,-693.79,0.00012135,2]
[352817300,1739345369883,-500.0,0.00012135,2]
[352817301,1739345369907,-3839.35,0.00012135,2]
[352817302,1739345369931,-2703.74,0.00012135,2]
[352817303,1739345369953,-500.0,0.00012135,2]
[352817304,1739345369975,-500.0,0.00012135,2]
[352817305,1739345369998,-500.0,0.00012135,2]
[352817306,1739345370019,-505.4428216,0.00012135,2]
[352817307,1739345370043,-500.0,0.00012135,2]
[352817308,1739345370064,-500.33558018,0.00012135,2]
[352817309,1739345370087,-500.0,0.00012135,2]
[352817310,1739345370109,-500.0,0.00012135,2]
[352817311,1739345370131,-500.0,0.00012136,2]
[352817312,1739345370152,-500.0,0.00012136,2]
[352817313,1739345370174,-500.0,0.00012136,2]
[352817314,1739345370195,-500.0,0.00012136,2]
[352817315,1739345370217,-361.23025921,0.00012136,2]
[352817316,1739345370238,-500.0,0.00012136,2]
[352817317,1739345370259,-500.0,0.00012136,2]
[352817318,1739345370281,-500.0,0.00012136,2]
[352817319,1739345370304,-500.0,0.00012136,2]
[352817320,1739345370325,-500.0,0.00012136,2]
[352817321,1739345370348,-708.05,0.00012271,2]
[352817322,1739345370370,-500.0,0.00012272,2]
[352817323,1739345370391,-500.0,0.00012272,2]
[352817324,1739345370415,-500.0,0.00012272,2]
[352817325,1739345370437,-500.0,0.00012272,2]
[352817326,1739345370458,-500.0,0.00012272,2]
[352817327,1739345370481,-500.0,0.00012272,2]
[352817328,1739345370502,-295.12113594,0.00012272,2]
[352817329,1739345371178,-556.98,0.00011998,2]
[352817330,1739345371201,-500.0,0.00011998,2]
[352817331,1739345371224,-484.0651849,0.00012135,2]
[352817332,1739345374127,-575.37063315,0.00011998,2]
[352817333,1739345374150,-72.9148151,0.00012135,2]
[352817334,1739345374176,-204.87886406,0.00012272,2]
[352817335,1739345374198,-500.0,0.00012272,2]
[352817336,1739345374221,-194.24,0.00012272,2]
[352817337,1739345374243,-167.92973331,0.00012272,2]
[352817338,1739345374266,-500.0,0.00012272,2]
[352817339,1739345374288,-500.0,0.00012272,2]
[352817340,1739345374311,-500.0,0.00012272,2]
[352817341,1739345374333,-500.0,0.00012272,2]
[352817342,1739345374353,-500.0,0.00012272,2]
[352817343,1739345374376,-500.0,0.00012272,2]
[352817344,1739345374399,-674.82,0.00012272,2]
[352817345,1739345374424,-500.0,0.00012272,2]
[352817346,1739345374446,-500.0,0.00012272,2]
[352817347,1739345374469,-500.0,0.00012272,2]
[352817348,1739345374492,-500.0,0.00012272,2]
[352817349,1739345374515,-500.0,0.00012272,2]
[352817350,1739345374536,-500.0,0.00012272,2]
[352817351,1739345374557,-500.0,0.00012272,2]
[352817352,1739345374578,-500.0,0.00012272,2]
[352817353,1739345374601,-900.73,0.00012272,2]
[352817354,1739345374623,-500.0,0.00012272,2]
[352817355,1739345374644,-495.96016509,0.00012272,2]
[352817356,1739345374667,-2856.23,0.00012272,2]
[352817357,1739345374689,-956.0,0.00012272,2]
[352817358,1739345374712,-330.87565395,0.00012272,2]
[352817384,1739345432590,-500.0,0.00011998,2]
[352817385,1739345432600,-210.17380002,0.00011998,2]
[352817386,1739345432613,-289.82619998,0.00011998,2]
[352817387,1739345432623,-500.0,0.00011998,2]
[352817388,1739345432632,-500.0,0.00011998,2]
[352817389,1739345432642,-500.0,0.00011998,2]
[352817390,1739345432651,-164.56380002,0.00011998,2]
[352817391,1739345432663,-359.11163607,0.00011998,2]
[352817392,1739345432673,-358.04821648,0.00011998,2]
[352817393,1739345432682,-300.0,0.00012134,2]
[352817394,1739345432691,-500.0,0.00012134,2]
[352817395,1739345432701,-500.29922499,0.00012135,2]
[352817396,1739345432710,-500.0,0.00012135,2]
[352817397,1739345432720,-500.0,0.00012135,2]
[352817398,1739345432729,-500.60736574,0.00012135,2]
[352817399,1739345432739,-500.0,0.00012135,2]
[352817400,1739345432748,-117.17293226,0.00012135,2]
[352817401,1739345432760,-382.82706774,0.00012135,2]
[352817402,1739345432769,-500.0,0.00012135,2]
[352817403,1739345432779,-500.2779208,0.00012135,2]
[352817405,1739345432788,-500.0,0.00012135,2]
[352817407,1739345432797,-500.0,0.00012135,2]
[352817409,1739345432806,-500.0,0.00012135,2]
[352817411,1739345432816,-169.12434605,0.00012272,2]
[352817413,1739345432825,-500.0,0.00012272,2]
[352817415,1739345432835,-943.98,0.00012272,2]
[352817417,1739345432844,-500.0,0.00012272,2]
[352817419,1739345432853,-500.0,0.00012272,2]
[352817421,1739345432863,-500.0,0.00012272,2]
[352817423,1739345432872,-8992.58,0.00012272,2]
[352817425,1739345432882,-500.0,0.00012272,2]
[352817427,1739345432891,-500.0,0.00012272,2]
[352817429,1739345432900,-500.0,0.00012272,2]
[352817431,1739345432910,-500.0,0.00012272,2]
[352817434,1739345432920,-693.79,0.00012272,2]
[352817436,1739345432931,-500.0,0.00012272,2]
[352817438,1739345432940,-3839.35,0.00012272,2]
[352817440,1739345432951,-2703.74,0.00012272,2]
[352817442,1739345432960,-500.0,0.00012272,2]
[352817443,1739345432969,-500.0,0.00012272,2]
[352817445,1739345432979,-500.0,0.00012272,2]
[352817447,1739345432988,-500.0,0.00012272,2]
[352817448,1739345432997,-556.98,0.00012272,2]
[352817449,1739345433006,-500.0,0.00012272,2]
[352817450,1739345433018,-500.0,0.00012272,2]
[352817451,1739345433027,-500.0,0.00012272,2]
[352817452,1739345433037,-500.0,0.00012272,2]
[352817453,1739345433047,-500.0,0.00012272,2]
[352817454,1739345433058,-500.0,0.00012272,2]
[352817455,1739345433068,-500.0,0.00012273,2]
[352817456,1739345433078,-500.0,0.00012273,2]
[352817457,1739345433087,-500.0,0.00012273,2]
[352817458,1739345433097,-500.0,0.00012273,2]
[352817459,1739345433107,-274.38853211,0.00012309,2]
[352817460,1739345433116,-708.05,0.00012408,2]
[352817461,1739345433127,-500.0,0.00012409,2]
[352817462,1739345433137,-500.0,0.00012409,2]
[352817463,1739345433147,-500.0,0.00012409,2]
[352817464,1739345433156,-500.0,0.00012409,2]
[352817465,1739345433166,-500.0,0.00012409,2]
[352817466,1739345433176,-500.0,0.00012409,2]
[352817467,1739345433185,-674.82,0.00012409,2]
[352817468,1739345433195,-500.0,0.00012409,2]
[352817469,1739345433204,-500.0,0.00012409,2]
[352817470,1739345433214,-398.23614346,0.00012409,2]
[352817471,1739345433224,-900.73,0.00012409,2]
[352817472,1739345433233,-500.0,0.00012409,2]
[352817473,1739345433243,-2856.23,0.00012409,2]
[352817474,1739345433253,-956.0,0.00012409,2]
[352817475,1739345433264,-500.0,0.00012409,2]
[352817476,1739345433274,-500.0,0.00012409,2]
[352817477,1739345433284,-943.98,0.00012409,2]
[352817478,1739345433294,-500.0,0.00012409,2]
[352817479,1739345433304,-500.0,0.00012409,2]
[352817480,1739345433314,-8992.58,0.00012409,2]
[352817481,1739345433325,-500.0,0.00012409,2]
[352817482,1739345433334,-500.0,0.00012409,2]
[352817483,1739345433344,-500.0,0.00012409,2]
[352817484,1739345433354,-500.0,0.00012409,2]
[352817485,1739345433364,-693.79,0.00012409,2]
[352817486,1739345433374,-500.0,0.00012409,2]
[352817487,1739345433384,-3839.35,0.00012409,2]
[352817488,1739345433394,-2703.74,0.00012409,2]
[352817489,1739345433404,-500.0,0.00012409,2]
[352817490,1739345433414,-500.0,0.00012409,2]
[352817491,1739345433428,-500.0,0.00012409,2]
[352817492,1739345433438,-500.0,0.00012409,2]
[352817493,1739345433447,-556.98,0.00012409,2]
[352817494,1739345433457,-500.0,0.00012409,2]
[352817495,1739345433467,-500.0,0.00012409,2]
[352817496,1739345433477,-500.0,0.00012409,2]
[352817497,1739345433486,-500.0,0.00012409,2]
[352817498,1739345433497,-500.0,0.00012409,2]
[352817499,1739345433506,-500.0,0.0001241,2]
[352817500,1739345433517,-500.0,0.0001241,2]
[352817501,1739345433526,-500.0,0.0001241,2]
[352817502,1739345433536,-4433.1472869,0.000125,2]
[352817503,1739345433545,-500.0,0.00012545,2]
[352817504,1739345433555,-500.0,0.00012545,2]
[352817505,1739345433564,-221.76682012,0.00012545,2]
[352817506,1739345433574,-587.67516731,0.00012545,2]
[352817507,1739345433583,-708.05,0.00012545,2]
[352817508,1739345433591,-500.0,0.00012546,2]
[352817509,1739345433601,-269.89626253,0.00012546,2]
[352817510,1739345433610,-500.0,0.00012546,2]
[352817511,1739345433620,-502.98,0.00012546,2]
[352817512,1739345433629,-500.0,0.00012546,2]
[352817513,1739345433638,-500.0,0.00012546,2]
[352817514,1739345433647,-674.82,0.00012546,2]
[352817515,1739345433657,-500.0,0.00012546,2]
[352817516,1739345433667,-500.0,0.00012546,2]
[352817517,1739345433677,-900.73,0.00012546,2]
[352817518,1739345433687,-2856.23,0.00012546,2]
[352817519,1739345433696,-956.0,0.00012546,2]
[352817520,1739345433706,-500.0,0.00012546,2]
[352817521,1739345433716,-500.0,0.00012546,2]
[352817522,1739345433725,-943.98,0.00012546,2]
[352817523,1739345433735,-500.0,0.00012546,2]
[352817524,1739345433744,-500.0,0.00012546,2]
[352817525,1739345433754,-8992.58,0.00012546,2]
[352817526,1739345433764,-500.0,0.00012546,2]
[352817527,1739345433774,-500.0,0.00012546,2]
[352817528,1739345433783,-500.0,0.00012546,2]
[352817529,1739345433793,-500.0,0.00012546,2]
[352817530,1739345433802,-693.79,0.00012546,2]
[352817531,1739345433811,-500.0,0.00012546,2]
[352817532,1739345433821,-3839.35,0.00012546,2]
[352817533,1739345433923,-2703.74,0.00012546,2]
[352817534,1739345433933,-500.0,0.00012546,2]
[352817535,1739345433942,-500.0,0.00012546,2]
[352817536,1739345433951,-500.0,0.00012546,2]
[352817537,1739345433961,-500.0,0.00012546,2]
[352817538,1739345433970,-556.98,0.00012546,2]
[352817539,1739345433980,-500.0,0.00012546,2]
[352817540,1739345433989,-500.0,0.00012546,2]
[352817541,1739345433999,-500.0,0.00012546,2]
[352817542,1739345434009,-500.0,0.00012546,2]
[352817543,1739345434018,-500.0,0.00012547,2]
[352817544,1739345434028,-500.0,0.00012547,2]
[352817545,1739345434037,-500.0,0.00012547,2]
[352817546,1739345434047,-274.38853208,0.0001266,2]
[352817547,1739345434056,-708.05,0.00012682,2]
[352817548,1739345434067,-500.0,0.00012683,2]
[352817549,1739345434076,-500.0,0.00012683,2]
[352817550,1739345434086,-500.0,0.00012683,2]
[352817551,1739345434095,-500.0,0.00012683,2]
[352817552,1739345434104,-674.82,0.00012683,2]
[352817553,1739345434114,-500.0,0.00012683,2]
[352817554,1739345434123,-500.0,0.00012683,2]
[352817555,1739345434133,-900.73,0.00012683,2]
[352817556,1739345434143,-2856.23,0.00012683,2]
[352817557,1739345434153,-956.0,0.00012683,2]
[352817558,1739345434163,-500.0,0.00012683,2]
[352817559,1739345434172,-500.0,0.00012683,2]
[352817560,1739345434182,-943.98,0.00012683,2]
[352817561,1739345434192,-500.0,0.00012683,2]
[352817562,1739345434203,-500.0,0.00012683,2]
[352817563,1739345434213,-8992.58,0.00012683,2]
[352817564,1739345434222,-500.0,0.00012683,2]
[352817565,1739345434232,-500.0,0.00012683,2]
[352817566,1739345434242,-693.79,0.00012683,2]
[352817567,1739345434252,-500.0,0.00012683,2]
[352817568,1739345434262,-3839.35,0.00012683,2]
[352817569,1739345434272,-2703.74,0.00012683,2]
[352817570,1739345434282,-500.0,0.00012683,2]
[352817571,1739345434291,-500.0,0.00012683,2]
[352817572,1739345434301,-500.0,0.00012683,2]
[352817573,1739345434311,-500.0,0.00012683,2]
[352817574,1739345434320,-556.98,0.00012683,2]
[352817575,1739345434330,-500.0,0.00012683,2]
[352817576,1739345434340,-500.0,0.00012683,2]
[352817577,1739345434350,-500.0,0.00012683,2]
[352817578,1739345434359,-500.0,0.00012683,2]
[352817579,1739345434369,-397.32602959,0.00012684,2]
[352817580,1739345434379,-500.0,0.00012684,2]
[352817581,1739345434389,-500.0,0.00012684,2]
[352817582,1739345434398,-708.05,0.00012819,2]
[352817583,1739345434408,-500.0,0.0001282,2]
[352817584,1739345434422,-500.0,0.0001282,2]
[352817585,1739345434432,-500.0,0.0001282,2]
[352817586,1739345434441,-674.82,0.0001282,2]
[352817587,1739345434451,-500.0,0.0001282,2]
[352817588,1739345434461,-900.73,0.0001282,2]
[352817589,1739345434470,-2856.23,0.0001282,2]
[352817590,1739345434480,-956.0,0.0001282,2]
[352817591,1739345434489,-500.0,0.0001282,2]
[352817592,1739345434499,-500.0,0.0001282,2]
[352817593,1739345434510,-943.98,0.0001282,2]
[352817594,1739345434519,-500.0,0.0001282,2]
[352817595,1739345434528,-500.0,0.0001282,2]
[352817596,1739345434538,-8992.58,0.0001282,2]
[352817597,1739345434547,-500.0,0.0001282,2]
[352817598,1739345434556,-500.0,0.0001282,2]
[352817599,1739345434566,-693.79,0.0001282,2]
[352817600,1739345434575,-500.0,0.0001282,2]
[352817601,1739345434585,-3839.35,0.0001282,2]
[352817602,1739345434595,-2703.74,0.0001282,2]
[352817603,1739345434604,-500.0,0.0001282,2]
[352817604,1739345434614,-500.0,0.0001282,2]
[352817605,1739345434623,-500.0,0.0001282,2]
[352817606,1739345434633,-500.0,0.0001282,2]
[352817607,1739345434642,-556.98,0.0001282,2]
[352817608,1739345434652,-500.0,0.0001282,2]
[352817609,1739345434661,-500.0,0.0001282,2]
[352817610,1739345434671,-500.0,0.0001282,2]
[352817611,1739345434680,-500.0,0.00012821,2]
[352817612,1739345434689,-662.13775387,0.000129,2]
[352817613,1739345434699,-708.05,0.00012956,2]
[352817614,1739345434708,-500.0,0.00012957,2]
[352817615,1739345434718,-500.0,0.00012957,2]
[352817616,1739345434727,-674.82,0.00012957,2]
[352817617,1739345434737,-500.0,0.00012957,2]
[352817618,1739345434746,-900.73,0.00012957,2]
[352817619,1739345434755,-2856.23,0.00012957,2]
[352817620,1739345434766,-956.0,0.00012957,2]
[352817621,1739345434775,-500.0,0.00012957,2]
[352817622,1739345434785,-500.0,0.00012957,2]
[352817623,1739345434794,-943.98,0.00012957,2]
[352817624,1739345434803,-500.0,0.00012957,2]
[352817625,1739345434813,-500.0,0.00012957,2]
[352817626,1739345434822,-8992.58,0.00012957,2]
[352817627,1739345434831,-693.79,0.00012957,2]
[352817628,1739345434840,-500.0,0.00012957,2]
[352817629,1739345434849,-3839.35,0.00012957,2]
[352817630,1739345434859,-2703.74,0.00012957,2]
[352817631,1739345434868,-500.0,0.00012957,2]
[352817632,1739345434879,-500.0,0.00012957,2]
[352817633,1739345434892,-500.0,0.00012957,2]
[352817634,1739345434906,-556.98,0.00012957,2]
[352817635,1739345434919,-500.0,0.00012957,2]
[352817636,1739345434931,-500.0,0.00012957,2]
[352817637,1739345434941,-500.0,0.00012957,2]
[352817638,1739345434954,-500.0,0.00012958,2]
[352817639,1739345434966,-274.38853208,0.00013012,2]
[352817640,1739345434978,-500.0,0.0001308,2]
[352817641,1739345434990,-708.05,0.00013093,2]
[352817642,1739345435003,-500.0,0.00013094,2]
[352817643,1739345435016,-674.82,0.00013094,2]
[352817644,1739345435028,-500.0,0.00013094,2]
[352817645,1739345435040,-900.73,0.00013094,2]
[352817646,1739345435054,-2856.23,0.00013094,2]
[352817647,1739345435067,-956.0,0.00013094,2]
[352817648,1739345435078,-500.0,0.00013094,2]
[352817649,1739345435090,-500.0,0.00013094,2]
[352817650,1739345435102,-943.98,0.00013094,2]
[352817651,1739345435114,-500.0,0.00013094,2]
[352817652,1739345435127,-8992.58,0.00013094,2]
[352817653,1739345435140,-693.79,0.00013094,2]
[352817654,1739345435151,-500.0,0.00013094,2]
[352817655,1739345435162,-3839.35,0.00013094,2]
[352817656,1739345435172,-2703.74,0.00013094,2]
[352817657,1739345435184,-500.0,0.00013094,2]
[352817658,1739345435195,-500.0,0.00013094,2]
[352817659,1739345435207,-556.98,0.00013094,2]
[352817660,1739345435219,-632.94492303,0.00013094,2]
[352817661,1739345435231,-314.26,0.00013094,2]
[352817662,1739345435243,-500.0,0.00013094,2]
[352817663,1739345435256,-563.81626233,0.00013095,2]
[352817664,1739345435269,-500.0,0.00013138,2]
[352817665,1739345435282,-160.28392707,0.00013138,2]
[352817666,1739345435294,-267.7570678,0.00013138,2]
[352817667,1739345435307,-500.0,0.00013138,2]
[352817668,1739345435317,-152.03741708,0.00013209,2]
[352817669,1739345435327,-708.05,0.0001323,2]
[352817670,1739345435338,-500.0,0.00013231,2]
[352817671,1739345435348,-674.82,0.00013231,2]
[352817672,1739345435361,-500.0,0.00013231,2]
[352817673,1739345435374,-900.73,0.00013231,2]
[352817674,1739345435386,-2856.23,0.00013231,2]
[352817675,1739345435397,-956.0,0.00013231,2]
[352817676,1739345435407,-500.0,0.00013231,2]
[352817677,1739345435420,-500.0,0.00013231,2]
[352817678,1739345435431,-943.98,0.00013231,2]
[352817679,1739345435443,-500.0,0.00013231,2]
[352817680,1739345435455,-8992.58,0.00013231,2]
[352817681,1739345435466,-693.79,0.00013231,2]
[352817682,1739345435476,-500.0,0.00013231,2]
[352817683,1739345435487,-3839.35,0.00013231,2]
[352817684,1739345435499,-2703.74,0.00013231,2]
[352817685,1739345435511,-500.0,0.00013231,2]
[352817686,1739345435522,-212.53941649,0.00013231,2]
[352817687,1739345435533,-556.98,0.00013231,2]
[352817688,1739345435544,-500.0,0.00013231,2]
[352817689,1739345435555,-269.85430873,0.000133,2]
[352817690,1739345435566,-500.0,0.000133,2]
[352817691,1739345435577,-500.85551591,0.000133,2]
[352817692,1739345435588,-500.0,0.00013303,2]
[352817693,1739345435599,-245.0,0.00013319,2]
[352817694,1739345435611,-274.38853208,0.00013363,2]
[352817695,1739345435622,-708.05,0.00013367,2]
[352817696,1739345435632,-500.0,0.00013368,2]
[352817697,1739345435643,-674.82,0.00013368,2]
[352817698,1739345435654,-500.0,0.00013368,2]
[352817699,1739345435665,-900.73,0.00013368,2]
[352817700,1739345435676,-2856.23,0.00013368,2]
[352817701,1739345435687,-956.0,0.00013368,2]
[352817702,1739345435698,-500.0,0.00013368,2]
[352817703,1739345435709,-639.41676667,0.00013368,2]
[352817704,1739345435720,-943.98,0.00013368,2]
[352817705,1739345435732,-500.0,0.00013368,2]
[352817706,1739345435743,-8992.58,0.00013368,2]
[352817707,1739345435754,-693.79,0.00013368,2]
[352817708,1739345435765,-500.0,0.00013368,2]
[352817709,1739345435776,-3839.35,0.00013368,2]
[352817710,1739345435787,-2703.74,0.00013368,2]
[352817711,1739345435799,-500.0,0.00013368,2]
[352817712,1739345435809,-556.98,0.00013368,2]
[352817713,1739345435821,-550.91,0.00013368,2]
[352817714,1739345435832,-500.0,0.00013402,2]
[352817715,1739345435843,-152.4557013,0.00013402,2]